fUSD/lending_fUSD_20260511
["ID","MTS","AMOUNT","RATE_DAILY","PERIOD"]
[422005501,1778447432000,-150.0,0.00011998,2]
[422005504,1778447432000,-371.24548325,0.00011998,2]
[422005503,1778447432000,-355.98658148,0.00011998,2]
[422005502,1778447432000,-300.0,0.00011998,2]
[422005505,1778447432000,-472.76793527,0.00011998,2]
[422005500,1778447432000,-200.0,0.00011928,2]
[422005499,1778447432000,-117.11790742,0.00011927,2]
[422005496,1778447432000,-227.98,0.00011603,2]
[422005498,1778447432000,-110.86209258,0.00011927,2]
[422005497,1778447432000,-231.91406503,0.00011769,2]
[422005495,1778447432000,-250.0,0.00011441,2]
[422005494,1778447432000,-115.56476009,0.00011279,2]
[422005511,1778447432000,-500.0,0.00011999,2]
[422005523,1778447432000,-500.0,0.00011999,2]
[422005509,1778447432000,-200.69286804,0.00011999,2]
[422005524,1778447432000,-500.0,0.00011999,2]
[422005525,1778447432000,-500.0,0.00011999,2]
[422005558,1778447432000,-483.47223506,0.00012,2]
[422005559,1778447432000,-396.59823353,0.00012,2]
[422005556,1778447432000,-278.071002,0.00012,2]
[422005553,1778447432000,-610.48894972,0.00012,2]
[422005551,1778447432000,-1503.14592439,0.00012,2]
[422005552,1778447432000,-522.00245098,0.00012,2]
[422005550,1778447432000,-1557.27262659,0.00012,2]
[422005547,1778447432000,-350.0,0.00011999,2]
[422005549,1778447432000,-50904.36604543,0.00012,2]
[422005545,1778447432000,-500.0,0.00011999,2]
[422005538,1778447432000,-321.73182997,0.00011999,2]
[422005541,1778447432000,-500.0,0.00011999,2]
[422005543,1778447432000,-500.0,0.00011999,2]
[422005554,1778447432000,-314.38943424,0.00012,2]
[422005539,1778447432000,-500.0,0.00011999,2]
[422005540,1778447432000,-500.0,0.00011999,2]
[422005528,1778447432000,-500.0,0.00011999,2]
[422005529,1778447432000,-500.0,0.00011999,2]
[422005527,1778447432000,-500.0,0.00011999,2]
[422005530,1778447432000,-466.90856075,0.00011999,2]
[422005531,1778447432000,-33.09143925,0.00011999,2]
[422005526,1778447432000,-500.0,0.00011999,2]
[422005533,1778447432000,-500.0,0.00011999,2]
[422005534,1778447432000,-500.0,0.00011999,2]
[422005536,1778447432000,-500.0,0.00011999,2]
[422005535,1778447432000,-500.0,0.00011999,2]
[422005537,1778447432000,-500.0,0.00011999,2]
[422005532,1778447432000,-500.0,0.00011999,2]
[422005586,1778447440000,-5005.76275609,0.00012479,2]
[422005588,1778447440000,-11362.46206188,0.00012781,2]
[422005587,1778447440000,-227.98,0.00012576,2]
[422005590,1778447440000,-24999.99,0.00012781,2]
[422005597,1778447440000,-1680.0,0.00013198,2]
[422005592,1778447440000,-600.0,0.000129,4]
[422005593,1778447440000,-255.0,0.00013078,2]
[422005596,1778447440000,-420.0,0.00013171,2]
[422005594,1778447440000,-11362.46206188,0.00013084,2]
[422005582,1778447440000,-5698.34733673,0.00012233,2]
[422005589,1778447440000,-193.05,0.00012781,2]
[422005595,1778447440000,-3046.22,0.0001309,2]
[422005576,1778447440000,-5005.76275611,0.00012076,2]
[422005583,1778447440000,-227.98,0.00012252,2]
[422005580,1778447440000,-500.0,0.00012176,2]
[422005579,1778447440000,-328.68,0.00012076,2]
[422005581,1778447440000,-11362.46206196,0.00012176,2]
[422005578,1778447440000,-1533.9,0.00012076,2]
[422005575,1778447440000,-2607.93,0.00012,2]
[422005577,1778447440000,-150.99,0.00012076,2]
[422005574,1778447440000,-589028.10411998,0.00012,2]
[422005573,1778447440000,-62545.15137049,0.00011978,2]
[422005572,1778447440000,-25978.22459261,0.00011978,2]
[422005571,1778447440000,-3341.076644,0.000119,2]
[422005570,1778447440000,-2357.27069278,0.000119,2]
[422005584,1778447440000,-250.0,0.00012407,2]
[422005591,1778447440000,-5005.76275609,0.00012883,2]
[422005585,1778447440000,-11362.46206188,0.00012479,2]
[422005600,1778447440000,-5005.76275609,0.00013286,2]
[422005598,1778447440000,-174.6,0.00013243,2]
[422005626,1778447440000,-5005.76275609,0.0001369,2]
[422005630,1778447440000,-150.0,0.00013787,2]
[422005628,1778447440000,-200.0,0.00013699,2]
[422005625,1778447440000,-11362.46206188,0.00013689,2]
[422005623,1778447440000,-174.6,0.00013684,2]
[422005621,1778447440000,-500.0,0.00013667,2]
[422005617,1778447440000,-150.0,0.00013488,2]
[422005618,1778447440000,-150.0,0.00013488,2]
[422005619,1778447440000,-150.0,0.00013488,2]
[422005616,1778447440000,-150.0,0.00013488,2]
[422005615,1778447440000,-500.0,0.00013473,2]
[422005614,1778447440000,-501.13268101,0.00013473,2]
[422005620,1778447440000,-165.18,0.0001356,2]
[422005612,1778447440000,-500.0,0.00013473,2]
[422005613,1778447440000,-500.0,0.00013473,2]
[422005601,1778447440000,-11362.46206188,0.00013387,2]
[422005602,1778447440000,-2080.17592889,0.00013453,2]
[422005603,1778447440000,-150.0,0.00013461,2]
[422005604,1778447440000,-501.30095539,0.00013473,2]
[422005606,1778447440000,-168.22676855,0.00013473,2]
[422005599,1778447440000,-1820.08,0.00013261,2]
[422005608,1778447440000,-500.31087895,0.00013473,2]
[422005607,1778447440000,-501.42645095,0.00013473,2]
[422005609,1778447440000,-500.0,0.00013473,2]
[422005610,1778447440000,-500.0,0.00013473,2]
[422005611,1778447440000,-500.0,0.00013473,2]
[422005605,1778447440000,-500.0,0.00013473,2]
[422005718,1778447441000,-500.0,0.00014597,2]
[422005722,1778447441000,-666.0,0.00014597,2]
[422005708,1778447441000,-500.0,0.00014597,2]
[422005710,1778447441000,-500.0,0.00014597,2]
[422005712,1778447441000,-500.0,0.00014597,2]
[422005720,1778447441000,-300.0,0.00014597,2]
[422005702,1778447441000,-500.0,0.00014597,2]
[422005704,1778447441000,-500.0,0.00014597,2]
[422005716,1778447441000,-500.0,0.00014597,2]
[422005701,1778447441000,-500.0,0.00014597,2]
[422005698,1778447441000,-309.78454867,0.00014597,2]
[422005697,1778447441000,-500.0,0.00014597,2]
[422005706,1778447441000,-500.0,0.00014597,2]
[422005714,1778447441000,-500.0,0.00014597,2]
[422005742,1778447441000,-277.246675,0.00014598,2]
[422005726,1778447441000,-300.0,0.00014597,2]
[422005728,1778447441000,-666.0,0.00014597,2]
[422005732,1778447441000,-11362.46206188,0.00014597,2]
[422005731,1778447441000,-300.0,0.00014597,2]
[422005735,1778447441000,-730.566208,0.00014598,2]
[422005733,1778447441000,-730.566208,0.00014598,2]
[422005736,1778447441000,-730.566208,0.00014598,2]
[422005734,1778447441000,-730.566208,0.00014598,2]
[422005737,1778447441000,-151.0,0.00014598,2]
[422005738,1778447441000,-151.0,0.00014598,2]
[422005739,1778447441000,-151.0,0.00014598,2]
[422005740,1778447441000,-151.0,0.00014598,2]
[422005694,1778447441000,-500.0,0.00014597,2]
[422005724,1778447441000,-300.0,0.00014597,2]
[422005688,1778447441000,-500.0,0.00014597,2]
[422005676,1778447441000,-6013.0,0.00014575,2]
[422005684,1778447441000,-582.37728066,0.00014597,2]
[422005632,1778447441000,-165.6,0.00013915,2]
[422005634,1778447441000,-11362.46206188,0.00013992,2]
[422005637,1778447441000,-2157.14243826,0.00014001,2]
[422005641,1778447441000,-1000.0,0.00014021,2]
[422005639,1778447441000,-1000.0,0.00014021,2]
[422005644,1778447441000,-150.0,0.00014087,2]
[422005643,1778447441000,-406.11739145,0.00014021,2]
[422005658,1778447441000,-1300.0,0.000144,5]
[422005652,1778447441000,-433.0,0.00014254,2]
[422005660,1778447441000,-67889.3503,0.00014474,2]
[422005662,1778447441000,-726.91354016,0.00014478,2]
[422005668,1778447441000,-1900.0,0.000145,5]
[422005654,1778447441000,-11362.46206188,0.00014295,2]
[422005670,1778447441000,-2351.0,0.00014518,2]
[422005650,1778447441000,-347.46,0.000142,2]
[422005666,1778447441000,-397.96062188,0.00014499,2]
[422005741,1778447441000,-277.246675,0.00014598,2]
[422005649,1778447441000,-174.6,0.00014126,2]
[422005678,1778447441000,-500.0,0.00014597,2]
[422005656,1778447441000,-150.0,0.00014387,2]
[422005664,1778447441000,-5005.76275609,0.00014497,2]
[422005647,1778447441000,-5005.76275609,0.00014093,2]
[422005674,1778447441000,-174.6,0.00014567,2]
[422005672,1778447441000,-2236.95670848,0.00014549,2]
[422005680,1778447441000,-500.0,0.00014597,2]
[422005682,1778447441000,-500.0,0.00014597,2]
[422005686,1778447441000,-500.0,0.00014597,2]
[422005690,1778447441000,-500.0,0.00014597,2]
[422005692,1778447441000,-500.0,0.00014597,2]
[422005696,1778447441000,-500.0,0.00014597,2]
[422005743,1778447441000,-277.246675,0.00014598,2]
[422005753,1778447441000,-2600.0,0.000146,5]
[422005744,1778447441000,-277.246675,0.00014598,2]
[422005777,1778447441000,-290.62704127,0.00014908,2]
[422005780,1778447441000,-666.0,0.00014911,2]
[422005781,1778447441000,-300.0,0.00014911,2]
[422005783,1778447441000,-666.0,0.00014911,2]
[422005782,1778447441000,-300.0,0.00014911,2]
[422005785,1778447441000,-601271.5614411,0.00014912,2]
[422005745,1778447441000,-777.632606,0.00014598,2]
[422005788,1778447441000,-178.3723865,0.00014912,2]
[422005787,1778447441000,-11645.2128341,0.00014912,2]
[422005789,1778447441000,-151.0,0.00014912,2]
[422005790,1778447441000,-730.566208,0.00014912,2]
[422005786,1778447441000,-3560.1503039,0.00014912,2]
[422005792,1778447441000,-730.566208,0.00014912,2]
[422005791,1778447441000,-730.566208,0.00014912,2]
[422005793,1778447441000,-730.566208,0.00014912,2]
[422005795,1778447441000,-151.0,0.00014912,2]
[422005794,1778447441000,-151.0,0.00014912,2]
[422005796,1778447441000,-268.267748,0.00014912,2]
[422005799,1778447441000,-277.246675,0.00014912,2]
[422005800,1778447441000,-277.246675,0.00014912,2]
[422005798,1778447441000,-277.246675,0.00014912,2]
[422005803,1778447441000,-777.632606,0.00014912,2]
[422005797,1778447441000,-151.0,0.00014912,2]
[422005801,1778447441000,-277.246675,0.00014912,2]
[422005802,1778447441000,-777.632606,0.00014912,2]
[422005805,1778447441000,-777.632606,0.00014912,2]
[422005804,1778447441000,-777.632606,0.00014912,2]
[422005807,1778447441000,-151.0,0.00014912,2]
[422005806,1778447441000,-151.0,0.00014912,2]
[422005779,1778447441000,-500.0,0.00014911,2]
[422005775,1778447441000,-2719.95173208,0.000149,2]
[422005784,1778447441000,-3469.5255925,0.00014912,2]
[422005778,1778447441000,-500.0,0.00014911,2]
[422005746,1778447441000,-777.632606,0.00014598,2]
[422005747,1778447441000,-777.632606,0.00014598,2]
[422005748,1778447441000,-777.632606,0.00014598,2]
[422005751,1778447441000,-2408.4002,0.00014599,2]
[422005752,1778447441000,-2000.0,0.00014599,2]
[422005774,1778447441000,-5005.76275609,0.000149,2]
[422005750,1778447441000,-151.0,0.00014598,2]
[422005754,1778447441000,-350.0,0.00014611,2]
[422005755,1778447441000,-267.897278,0.00014614,2]
[422005756,1778447441000,-267.897279,0.00014614,2]
[422005757,1778447441000,-150.0,0.00014687,2]
[422005760,1778447441000,-150.0,0.0001476,2]
[422005758,1778447441000,-397.96062188,0.000147,2]
[422005761,1778447441000,-164.34408087,0.00014773,2]
[422005749,1778447441000,-151.0,0.00014598,2]
[422005759,1778447441000,-3200.0,0.000147,5]
[422005776,1778447441000,-756.57374274,0.00014902,2]
[422005773,1778447441000,-600.0,0.000149,5]
[422005771,1778447441000,-11362.46206188,0.000149,2]
[422005772,1778447441000,-397.96062188,0.000149,2]
[422005767,1778447441000,-2251.65069118,0.0001485,2]
[422005768,1778447441000,-500.0,0.00014855,2]
[422005770,1778447441000,-10000.0,0.000149,2]
[422005765,1778447441000,-600.0,0.000148,5]
[422005766,1778447441000,-329.07683996,0.0001485,2]
[422005764,1778447441000,-500.0,0.00014787,2]
[422005763,1778447441000,-526.44908795,0.0001478,2]
[422005762,1778447441000,-500.0,0.00014773,2]
[422005769,1778447441000,-195.06796117,0.000149,2]
[422005821,1778447442000,-500.0,0.00014999,2]
[422005820,1778447442000,-500.0,0.00014999,2]
[422005823,1778447442000,-500.0,0.00014999,2]
[422005826,1778447442000,-500.0,0.00014999,2]
[422005824,1778447442000,-500.0,0.00014999,2]
[422005818,1778447442000,-155.0,0.00014999,2]
[422005822,1778447442000,-500.0,0.00014999,2]
[422005819,1778447442000,-1181.55819315,0.00014999,5]
[422005811,1778447442000,-150.0,0.00014986,2]
[422005812,1778447442000,-157.24131601,0.00014986,2]
[422005808,1778447442000,-1820.08,0.00014919,2]
[422005810,1778447442000,-384.25,0.00014985,2]
[422005809,1778447442000,-776.18,0.00014985,2]
[422005813,1778447442000,-756.57374274,0.0001499,2]
[422005816,1778447442000,-756.57374274,0.0001499,2]
[422005825,1778447442000,-500.0,0.00014999,2]
[422005817,1778447442000,-156.244,0.00014999,2]
[422005827,1778447442000,-500.0,0.00014999,2]
[422005830,1778447442000,-500.0,0.00014999,2]
[422005829,1778447442000,-500.0,0.00014999,2]
[422005828,1778447442000,-500.0,0.00014999,2]
[422005845,1778447442000,-58231.47832789,0.00015,2]
[422005846,1778447442000,-26041.49379629,0.00015,2]
[422005844,1778447442000,-1678.19997191,0.00015,2]
[422005840,1778447442000,-14270.32839644,0.00015,2]
[422005843,1778447442000,-1419.869755,0.00015,2]
[422005842,1778447442000,-2127.56901028,0.00015,2]
[422005841,1778447442000,-527.2,0.00015,2]
[422005838,1778447442000,-2000.0,0.00015,2]
[422005836,1778447442000,-671.81221062,0.00015,2]
[422005837,1778447442000,-9324.79362834,0.00015,2]
[422005834,1778447442000,-300.0,0.00014999,2]
[422005835,1778447442000,-723448.73617231,0.00015,2]
[422005847,1778447442000,-667.96197469,0.00015,2]
[422005833,1778447442000,-205.88223055,0.00014999,2]
[422005832,1778447442000,-551.38,0.00014999,2]
[422005831,1778447442000,-500.0,0.00014999,2]
[422005839,1778447442000,-9954.62348864,0.00015,2]
[422005920,1778447443000,-3281.49346905,0.00015,2]
[422005919,1778447443000,-1389.80098857,0.00015,2]
[422005918,1778447443000,-18883.69448619,0.00015,2]
[422005922,1778447443000,-916.81268789,0.00015,2]
[422005923,1778447443000,-1079.88131655,0.00015,2]
[422005924,1778447443000,-11804.01769063,0.00015,2]
[422005921,1778447443000,-1269.84396221,0.00015,2]
[422005953,1778447446000,-152.0,0.00011647,2]
[422005954,1778447446000,-279.885,0.00012567,2]
[422005955,1778447446000,-1611.90403973,0.00012567,2]
[422005956,1778447446000,-1311.80871923,0.00012567,2]
[422005958,1778447446000,-579.98829227,0.00012567,2]
[422005957,1778447446000,-967.0,0.00012567,2]
[422005959,1778447446000,-947.7612855,0.00012567,2]
[422005960,1778447446000,-130.3087145,0.00015,2]
[422005961,1778447446000,-626.31750218,0.00015,2]
[422005962,1778447446000,-725.30171946,0.00015,2]
[422005964,1778447446000,-2533.59916637,0.00015,2]
[422005965,1778447446000,-184607.13830226,0.00015,2]
[422005967,1778447446000,-3138.13250426,0.00015,2]
[422005966,1778447446000,-122540.31570001,0.00015,2]
[422005968,1778447446000,-195000.03188155,0.00015,2]
[422005970,1778447446000,-1362.91705858,0.00015,2]
[422005969,1778447446000,-1123.71239335,0.00015,2]
[422005971,1778447446000,-868.8,0.00015,2]
[422005963,1778447446000,-757.32403302,0.00015,2]
[422005975,1778447580000,651.60766194,0.0001,2]
[422005978,1778447825000,152.0,0.00020197,120]
[422005979,1778448029000,150.84,6.919e-05,2]
[422005980,1778448030000,150.84,7.431e-05,2]
[422005981,1778448030000,150.84,7.942e-05,2]
[422005982,1778448030000,150.84,8.453e-05,2]
[422005983,1778448030000,150.84,8.965e-05,2]
[422005984,1778448030000,150.84,9.476e-05,2]
[422005985,1778448031000,150.84,9.987e-05,2]
[422005987,1778448341000,-26.10924374,0.0001066,2]
[422005986,1778448341000,-150.84,0.00010499,2]
[422005989,1778448438000,-152.0,0.00010822,2]
[422005990,1778448438000,-152.0,0.00010822,2]
[422005992,1778448438000,-204.61910912,0.00011177,2]
[422005988,1778448438000,-223.89075626,0.0001066,2]
[422005991,1778448438000,-150.84,0.0001101,2]
[422005995,1778448438000,-51.58178494,0.00011549,2]
[422005994,1778448438000,-250.0,0.00011549,2]
[422005993,1778448438000,-150.84,0.00011522,2]
[422005998,1778448555000,-519.8726984,0.00012757,2]
[422005996,1778448555000,-150.84,0.00012033,2]
[422005997,1778448555000,-150.84,0.00012544,2]
[422006027,1778448632000,-150.0,0.0001355,2]
[422006021,1778448632000,-150.0,0.00013488,2]
[422006022,1778448632000,-150.0,0.00013488,2]
[422006023,1778448632000,-150.0,0.00013488,2]
[422006020,1778448632000,-5719.46335255,0.00013199,2]
[422006028,1778448632000,-150.84,0.00013567,2]
[422006035,1778448632000,-150.0,0.00013738,2]
[422006029,1778448632000,-150.0,0.00013598,2]
[422006030,1778448632000,-150.0,0.00013613,2]
[422006032,1778448632000,-1471.1,0.00013689,2]
[422006031,1778448632000,-150.0,0.00013675,2]
[422006034,1778448632000,-150.0,0.00013737,2]
[422006025,1778448632000,-150.0,0.00013488,2]
[422006026,1778448632000,-150.0,0.00013488,2]
[422006036,1778448632000,-2157.14243826,0.00013739,2]
[422006016,1778448632000,-1325.49590952,0.00013199,2]
[422006019,1778448632000,-463.60708434,0.00013199,2]
[422006005,1778448632000,-211.29903594,0.00012747,2]
[422006008,1778448632000,-287.1,0.00013188,2]
[422006007,1778448632000,-150.84,0.00013056,2]
[422006006,1778448632000,-2085.0373016,0.00012757,2]
[422006009,1778448632000,-200.0,0.0001319,2]
[422006010,1778448632000,-2080.17592889,0.00013191,2]
[422006024,1778448632000,-150.0,0.00013488,2]
[422006011,1778448632000,-165.18,0.00013194,2]
[422006013,1778448632000,-300.0,0.00013198,2]
[422006037,1778448632000,-1523.11,0.00013772,2]
[422006017,1778448632000,-3674.49409048,0.00013199,2]
[422006014,1778448632000,-3.95977895,0.00013198,2]
[422006015,1778448632000,-1361.08022105,0.00013198,2]
[422006018,1778448632000,-50.58956311,0.00013199,2]
[422006012,1778448632000,-1200.0,0.00013197,2]
[422006033,1778448632000,-200.0,0.00013699,2]
[422006073,1778448632000,-150.0,0.00014387,2]
[422006039,1778448632000,-150.0,0.000138,2]
[422006038,1778448632000,-150.0,0.00013787,2]
[422006083,1778448632000,-150.0,0.00014612,2]
[422006079,1778448632000,-150.0,0.00014549,2]
[422006082,1778448632000,-150.0,0.00014612,2]
[422006081,1778448632000,-150.0,0.00014612,2]
[422006080,1778448632000,-153.0824878,0.0001461,2]
[422006078,1778448632000,-1680.0,0.00014517,2]
[422006064,1778448632000,-150.0,0.00014237,2]
[422006066,1778448632000,-150.0,0.00014237,2]
[422006062,1778448632000,-150.0,0.00014237,2]
[422006068,1778448632000,-1469.63140961,0.00014287,2]
[422006075,1778448632000,-420.0,0.00014471,2]
[422006076,1778448632000,-150.0,0.00014487,2]
[422006074,1778448632000,-150.0,0.00014424,2]
[422006077,1778448632000,-990.3,0.00014497,2]
[422006084,1778448632000,-74180.34076476,0.00014612,2]
[422006072,1778448632000,-150.0,0.00014362,2]
[422006070,1778448632000,-150.0,0.00014299,2]
[422006041,1778448632000,-150.0,0.00013862,2]
[422006043,1778448632000,-344.03133195,0.000139,2]
[422006045,1778448632000,-448.41821506,0.00013951,2]
[422006048,1778448632000,-168.54,0.00013991,2]
[422006046,1778448632000,-150.0,0.00013987,2]
[422006044,1778448632000,-150.0,0.00013925,2]
[422006040,1778448632000,-150.0,0.00013862,2]
[422006052,1778448632000,-150.0,0.0001405,2]
[422006042,1778448632000,-150.0,0.00013862,2]
[422006058,1778448632000,-150.0,0.00014175,2]
[422006050,1778448632000,-250.0,0.00014,2]
[422006054,1778448632000,-150.0,0.00014087,2]
[422006056,1778448632000,-150.0,0.00014112,2]
[422006060,1778448632000,-150.0,0.00014237,2]
[422006118,1778448638000,-500.0,0.00014708,2]
[422006107,1778448638000,-500.0,0.00014708,2]
[422006110,1778448638000,-500.0,0.00014708,2]
[422006111,1778448638000,-500.0,0.00014708,2]
[422006114,1778448638000,-500.0,0.00014708,2]
[422006109,1778448638000,-500.0,0.00014708,2]
[422006117,1778448638000,-500.0,0.00014708,2]
[422006112,1778448638000,-500.0,0.00014708,2]
[422006113,1778448638000,-500.0,0.00014708,2]
[422006115,1778448638000,-500.0,0.00014708,2]
[422006119,1778448638000,-500.0,0.00014708,2]
[422006108,1778448638000,-500.0,0.00014708,2]
[422006116,1778448638000,-500.0,0.00014708,2]
[422006103,1778448638000,-150.0,0.00014674,2]
[422006105,1778448638000,-150.0,0.00014687,2]
[422006102,1778448638000,-3988.84313571,0.00014665,2]
[422006101,1778448638000,-166.67,0.00014645,2]
[422006098,1778448638000,-692.422,0.00014612,2]
[422006099,1778448638000,-696.91935626,0.00014619,2]
[422006095,1778448638000,-9224.8358022,0.00014612,2]
[422006106,1778448638000,-3988.84313571,0.00014695,2]
[422006097,1778448638000,-1586.80423304,0.00014612,2]
[422006104,1778448638000,-153.0824878,0.00014683,2]
[422006096,1778448638000,-1454.76,0.00014612,2]
[422006092,1778448638000,-913.236535,0.00012683,2]
[422006094,1778448638000,-92929.25279786,0.00013367,2]
[422006093,1778448638000,-37492.33635014,0.00013367,2]
[422006121,1778448638000,-500.0,0.00014708,2]
[422006100,1778448638000,-3988.84313572,0.00014636,2]
[422006120,1778448638000,-500.0,0.00014708,2]
[422006133,1778448638000,-241.5578838,0.00014711,2]
[422006123,1778448638000,-500.0,0.00014708,2]
[422006122,1778448638000,-500.0,0.00014708,2]
[422006153,1778448638000,-1900.0,0.00014712,2]
[422006151,1778448638000,-10215.53995253,0.00014712,2]
[422006145,1778448638000,-514.65386803,0.00014712,2]
[422006144,1778448638000,-205.3606827,0.00014712,5]
[422006146,1778448638000,-5297.37439239,0.00014712,2]
[422006149,1778448638000,-363.98,0.00014712,2]
[422006148,1778448638000,-347.25659751,0.00014712,2]
[422006150,1778448638000,-1051.74850456,0.00014712,2]
[422006141,1778448638000,-491.3606827,0.00014712,5]
[422006147,1778448638000,-879.54028418,0.00014712,2]
[422006140,1778448638000,-281.6393173,0.00014712,5]
[422006138,1778448638000,-109.40714259,0.00014711,2]
[422006152,1778448638000,-3562.06698633,0.00014712,2]
[422006143,1778448638000,-579.6393173,0.00014712,5]
[422006139,1778448638000,-424.87255652,0.00014711,2]
[422006125,1778448638000,-500.0,0.00014708,2]
[422006128,1778448638000,-135.98098762,0.00014708,2]
[422006127,1778448638000,-479.06631205,0.00014708,2]
[422006129,1778448638000,-500.0,0.00014708,2]
[422006134,1778448638000,-228.17790551,0.00014711,2]
[422006126,1778448638000,-500.0,0.00014708,2]
[422006124,1778448638000,-500.0,0.00014708,2]
[422006130,1778448638000,-500.0,0.00014708,2]
[422006132,1778448638000,-258.4421162,0.00014711,2]
[422006137,1778448638000,-390.59285741,0.00014711,2]
[422006136,1778448638000,-238.44623291,0.00014711,2]
[422006135,1778448638000,-345.29767051,0.00014711,2]
[422006131,1778448638000,-500.0,0.00014708,2]
[422006155,1778448639000,-6000.0,0.00014712,2]
[422006157,1778448639000,-17956.07462555,0.00014712,2]
[422006160,1778448639000,-667.96197469,0.00014712,2]
[422006171,1778448639000,-2209.94260425,0.00014712,2]
[422006168,1778448639000,-2096.55591212,0.00014712,2]
[422006175,1778448639000,-378.78678976,0.00014712,2]
[422006173,1778448639000,-1678.19997191,0.00014712,2]
[422006185,1778448640000,-276.7457751,0.00014712,2]
[422006186,1778448640000,-747.07072197,0.00014712,2]
[422006184,1778448640000,-832.05,0.00014712,2]
[422006188,1778448641000,152.0,0.00010345,2]
[422006208,1778448643000,-726.149985,0.00014712,2]
[422006207,1778448643000,-19.66083681,0.00014712,2]
[422006211,1778448643000,-665.86939559,0.00014712,2]
[422006210,1778448643000,-7337.39113383,0.00014712,2]
[422006209,1778448643000,-529.76290492,0.00014712,2]
[422006214,1778448646000,-1369.41561281,0.00014624,2]
[422006215,1778448646000,-723.27390214,0.00014624,2]
[422006216,1778448646000,-1180.95304529,0.00014624,2]
[422006218,1778448646000,-5327.07409447,0.00014712,2]
[422006217,1778448646000,-2673.88287057,0.00014624,2]
[422006219,1778448646000,-341.68629724,0.00014712,2]
[422006221,1778448647000,-5573.4868,0.00014712,2]
[422006220,1778448647000,-1734.61950838,0.00014712,2]
[422006228,1778448941000,152.0,0.00010342,2]
[422006230,1778448942000,152.0,0.00020026,120]
[422006229,1778448942000,152.0,0.00010345,2]
[422006231,1778449241000,152.0,0.00010342,2]
[422006232,1778449242000,152.0,0.00020032,120]
[422006233,1778449325000,150.0,0.00014247,21]
[422006235,1778449746000,2045.94768977,0.0001367,21]
[422006237,1778449752000,-17.4949375,0.00012664,2]
[422006236,1778449752000,-152.0,0.00010611,2]
[422006242,1778449753000,-923.19,0.00013255,2]
[422006241,1778449753000,-200.0,0.00013165,2]
[422006243,1778449753000,-161.52,0.00013255,2]
[422006238,1778449753000,-1174.7950625,0.00012664,2]
[422006239,1778449753000,-167.24,0.00012714,2]
[422006244,1778449753000,-211.23,0.00013263,2]
[422006240,1778449753000,-166.66,0.00013031,2]
[422006245,1778449753000,-1176.88,0.00013299,2]
[422006248,1778449753000,-150.0,0.00013448,2]
[422006247,1778449753000,-500.0,0.00013442,2]
[422006246,1778449753000,-191.39,0.00013363,2]
[422006255,1778449753000,-75.14548363,0.00013488,2]
[422006254,1778449753000,-150.0,0.00013488,2]
[422006251,1778449753000,-216.83912455,0.00013488,2]
[422006253,1778449753000,-150.0,0.00013488,2]
[422006250,1778449753000,-150.0,0.00013488,2]
[422006249,1778449753000,-300.0,0.00013487,2]
[422006252,1778449753000,-150.0,0.00013488,2]
[422006266,1778449831000,-500.0,0.00013539,2]
[422006271,1778449831000,-150.0,0.00013563,2]
[422006273,1778449831000,-150.0,0.00013638,2]
[422006272,1778449831000,-150.0,0.000136,2]
[422006270,1778449831000,-1376.3623715,0.00013554,2]
[422006269,1778449831000,-692.422,0.00013539,2]